fUSD/lending_fUSD_20240506
["ID","MTS","AMOUNT","RATE_DAILY","PERIOD"]
[326495808,1715009465431,-691.64,0.00024931,3]
[326495809,1715009465442,-300.0,0.00024931,3]
[326495810,1715009465452,-1655.38,0.00024931,3]
[326495811,1715009465462,-2497.22,0.00024931,3]
[326495812,1715009465474,-516.42,0.00024931,3]
[326495813,1715009465486,-862.46,0.00024931,3]
[326495814,1715009465496,-500.0,0.00024931,3]
[326495815,1715009465506,-295.6417852,0.00024931,2]
[326495816,1715009465516,-3493.19,0.00024931,3]
[326495817,1715009465526,-500.0,0.00024931,3]
[326495818,1715009465535,-500.0,0.00024931,3]
[326495819,1715009465545,-1412.29,0.00024931,3]
[326495820,1715009465556,-1028.01,0.00024931,3]
[326495821,1715009465565,-734.87,0.00024931,3]
[326495822,1715009465575,-1131.07,0.00024931,3]
[326495823,1715009465585,-1653.21,0.00024931,3]
[326495824,1715009465596,-1208.08,0.00024931,3]
[326495825,1715009465606,-500.0,0.00024931,3]
[326495826,1715009465616,-500.0,0.00024931,3]
[326495827,1715009465626,-500.0,0.00024931,3]
[326495828,1715009465636,-1214.26,0.00024931,3]
[326495829,1715009465646,-500.0,0.00024931,3]
[326495830,1715009465656,-761.52,0.00024931,3]
[326495831,1715009465665,-744.96,0.00024931,3]
[326495832,1715009465675,-500.0,0.00024931,3]
[326495833,1715009465685,-681.7,0.00024931,3]
[326495834,1715009465695,-592.31,0.00024931,3]
[326495835,1715009465704,-682.42,0.00024931,3]
[326495836,1715009465714,-500.0,0.00024931,3]
[326495837,1715009465724,-1193.03,0.00024931,3]
[326495838,1715009465735,-500.0,0.00024931,3]
[326495839,1715009465745,-500.0,0.00024931,3]
[326495840,1715009465755,-500.0,0.00024931,3]
[326495841,1715009465768,-831.06,0.00024931,3]
[326495842,1715009465777,-500.0,0.00024931,3]
[326495843,1715009465787,-1740.2,0.00024931,3]
[326495844,1715009465796,-998.24,0.00024931,3]
[326495845,1715009465807,-1038.76,0.00024931,3]
[326495846,1715009465816,-500.0,0.00024931,3]
[326495847,1715009465826,-500.0,0.00024931,2]
[326495848,1715009465836,-500.0,0.00024931,3]
[326495849,1715009465847,-2503.63,0.00024931,3]
[326495850,1715009465858,-500.0,0.00024931,3]
[326495851,1715009465869,-500.0,0.00024931,3]
[326495852,1715009465879,-523.27,0.00024931,3]
[326495853,1715009465888,-518.41,0.00024931,3]
[326495854,1715009465898,-501.35,0.00024931,3]
[326495855,1715009465907,-732.49,0.00024931,3]
[326495856,1715009465917,-500.0,0.00024931,3]
[326495857,1715009465927,-649.94,0.00024931,3]
[326495858,1715009465938,-629.6,0.00024931,3]
[326495859,1715009465948,-500.0,0.00024931,3]
[326495860,1715009465957,-779.53,0.00024931,3]
[326495861,1715009465966,-500.0,0.00024931,3]
[326495862,1715009465976,-500.0,0.00024931,3]
[326495863,1715009465987,-1267.21,0.00024931,3]
[326495864,1715009465996,-500.0,0.00024931,3]
[326495865,1715009466006,-1866.13,0.00024931,3]
[326495866,1715009466015,-1139.05,0.00024931,3]
[326495867,1715009466025,-500.0,0.00024931,3]
[326495868,1715009466034,-327.58169693,0.00024931,3]
[326495869,1715009466044,-500.0,0.00024931,3]
[326495870,1715009466054,-1996.58,0.00024931,3]
[326495871,1715009466064,-554.47,0.00024931,3]
[326495872,1715009466073,-500.0,0.00024931,3]
[326495873,1715009466083,-526.42,0.00024931,3]
[326495874,1715009466093,-500.0,0.00024931,3]
[326495875,1715009466102,-2928.16,0.00024931,3]
[326495876,1715009466111,-500.0,0.00024931,3]
[326495877,1715009466121,-278.42504624,0.00024931,3]
[326495878,1715009466130,-500.0,0.00024931,3]
[326495879,1715009466140,-839.38,0.00024931,3]
[326495880,1715009466149,-500.0,0.00024931,3]
[326495881,1715009466158,-500.0,0.00024931,3]
[326495882,1715009466168,-719.04,0.00024931,3]
[326495883,1715009466178,-606.29,0.00024931,3]
[326495884,1715009466187,-500.0,0.00024931,3]
[326495885,1715009466196,-1935.71,0.00024931,3]
[326495886,1715009466206,-500.0,0.00024931,3]
[326495887,1715009466216,-2073.82,0.00024931,3]
[326495888,1715009466226,-1247.5,0.00024931,3]
[326495889,1715009466237,-814.85,0.00024931,3]
[326495890,1715009466247,-2650.88,0.00024931,3]
[326495891,1715009466257,-645.49,0.00024931,3]
[326495892,1715009466267,-500.0,0.00024931,3]
[326495893,1715009466277,-541.61,0.00024931,3]
[326495894,1715009466287,-500.0,0.00024931,3]
[326495895,1715009466296,-511.72,0.00024931,3]
[326495896,1715009466306,-500.0,0.00024931,3]
[326495897,1715009466316,-7196.3,0.00024931,3]
[326495898,1715009466326,-1087.06,0.00024931,3]
[326495899,1715009466335,-1228.65,0.00024931,3]
[326495900,1715009466345,-500.0,0.00024931,3]
[326495901,1715009466355,-1967.21,0.00024931,3]
[326495902,1715009466367,-506.05310236,0.00024931,3]
[326495903,1715009466377,-1159.53,0.00024931,3]
[326495904,1715009466386,-500.0,0.00024931,3]
[326495905,1715009466398,-630.47,0.00024931,3]
[326495906,1715009466408,-500.0,0.00024931,3]
[326495907,1715009466417,-555.84,0.00024931,3]
[326495908,1715009466427,-840.15,0.00024931,3]
[326495909,1715009466436,-1796.48,0.00024931,3]
[326495910,1715009466446,-934.08,0.00024931,3]
[326495911,1715009466455,-1640.34,0.00024931,3]
[326495912,1715009466465,-500.0,0.00024931,3]
[326495913,1715009466474,-513.69,0.00024931,3]
[326495914,1715009466486,-500.0,0.00024931,3]
[326495915,1715009466496,-695.62,0.00024931,3]
[326495916,1715009466506,-500.0,0.00024931,3]
[326495917,1715009466516,-1344.41,0.00024931,3]
[326495918,1715009466527,-500.0,0.00024931,3]
[326495919,1715009466536,-1185.26,0.00024931,3]
[326495920,1715009466545,-1900.56,0.00024931,3]
[326495921,1715009466555,-755.3,0.00024931,3]
[326495922,1715009466564,-500.0,0.00024931,3]
[326495923,1715009466573,-665.94,0.00024931,3]
[326495924,1715009466583,-1278.15,0.00024931,3]
[326495925,1715009466592,-500.0,0.00024931,3]
[326495926,1715009466602,-500.0,0.00024931,3]
[326495927,1715009466611,-517.3,0.00024931,3]
[326495928,1715009466620,-16580.38,0.00024931,3]
[326495929,1715009466629,-3483.4,0.00024931,3]
[326495930,1715009466640,-500.0,0.00024931,3]
[326495931,1715009466650,-1339.23,0.00024931,3]
[326495932,1715009466659,-1634.93,0.00024931,3]
[326495933,1715009466668,-500.0,0.00024931,3]
[326495934,1715009466677,-664.55,0.00024931,3]
[326495935,1715009466687,-755.11,0.00024931,3]
[326495936,1715009466696,-500.0,0.00024931,3]
[326495937,1715009466706,-986.05,0.00024931,3]
[326495938,1715009466715,-500.0,0.00024931,3]
[326495939,1715009466724,-500.0,0.00024931,3]
[326495940,1715009466735,-1621.97,0.00024931,3]
[326495941,1715009466744,-707.01,0.00024931,3]
[326495942,1715009466754,-4466.22,0.00024931,3]
[326495943,1715009466765,-507.55,0.00024931,3]
[326495944,1715009466776,-1373.86,0.00024931,3]
[326495945,1715009466785,-2217.62,0.00024931,3]
[326495946,1715009466795,-500.0,0.00024931,3]
[326495947,1715009466805,-552.94,0.00024931,3]
[326495948,1715009466815,-655.66,0.00024931,3]
[326495949,1715009466825,-753.09,0.00024931,3]
[326495950,1715009466835,-909.79,0.00024931,3]
[326495951,1715009466845,-1486.8,0.00024931,3]
[326495952,1715009466855,-500.0,0.00024931,3]
[326495953,1715009466866,-799.64,0.00024931,3]
[326495954,1715009466875,-5307.55,0.00024931,3]
[326495955,1715009466885,-626.56,0.00024931,3]
[326495956,1715009466895,-10122.88,0.00024931,3]
[326495957,1715009466905,-524.38770719,0.00024931,3]
[326495958,1715009466914,-4605.09,0.00024931,3]
[326495959,1715009466924,-1849.12,0.00024931,3]
[326495960,1715009466933,-893.14,0.00024931,3]
[326495961,1715009466943,-500.0,0.00024931,3]
[326495962,1715009466952,-1098.64,0.00024931,3]
[326495963,1715009466963,-2436.24,0.00024931,3]
[326495964,1715009466973,-5996.4,0.00024931,3]
[326495965,1715009466984,-501.5670893,0.00024931,3]
[326495966,1715009466994,-600.47071025,0.00024931,3]
[326495967,1715009467004,-619.34,0.00024931,3]
[326495968,1715009467014,-500.0,0.00024931,3]
[326495969,1715009467023,-835.88,0.00024931,3]
[326495970,1715009467033,-1258.91,0.00024931,3]
[326495971,1715009467043,-1988.56,0.00024931,3]
[326495972,1715009467053,-500.0,0.00024931,3]
[326495973,1715009467063,-3462.8,0.00024931,3]
[326495974,1715009467072,-606.84,0.00024931,3]
[326495975,1715009467082,-1354.68,0.00024931,3]
[326495976,1715009467091,-10724.08,0.00024931,3]
[326495977,1715009467100,-1855.78,0.00024931,3]
[326495978,1715009467110,-537.44,0.00024931,3]
[326495979,1715009467119,-500.0,0.00024931,3]
[326495980,1715009467130,-756.06,0.00024931,3]
[326495981,1715009467139,-10278.55,0.00024931,3]
[326495982,1715009467149,-500.0,0.00024931,3]
[326495983,1715009467159,-635.51,0.00024931,3]
[326495984,1715009467168,-9517.78,0.00024931,3]
[326495985,1715009467179,-500.0,0.00024931,3]
[326495986,1715009467189,-834.68,0.00024931,3]
[326495987,1715009467199,-533.5,0.00024931,3]
[326495988,1715009467208,-503.62,0.00024931,3]
[326495989,1715009467218,-1009.7,0.00024931,3]
[326495990,1715009467227,-17627.26,0.00024931,3]
[326495991,1715009467238,-500.0,0.00024931,3]
[326495992,1715009467247,-500.0,0.00024931,3]
[326495993,1715009467257,-3541.79,0.00024931,3]
[326495994,1715009467267,-1031.93,0.00024931,3]
[326495995,1715009467276,-500.0,0.00024931,3]
[326495996,1715009467286,-2894.05,0.00024931,3]
[326495997,1715009467296,-2914.16,0.00024931,3]
[326495998,1715009467305,-500.0,0.00024931,3]
[326495999,1715009467315,-500.0,0.00024931,3]
[326496000,1715009467325,-4625.65,0.00024931,3]
[326496001,1715009467334,-4090.24,0.00024931,3]
[326496002,1715009467344,-6634.8,0.00024931,3]
[326496003,1715009467354,-500.0,0.00024931,3]
[326496004,1715009467363,-1120.33,0.00024931,3]
[326496005,1715009467373,-500.0,0.00024931,3]
[326496006,1715009467383,-500.0,0.00024931,3]
[326496007,1715009467392,-538.83,0.00024931,3]
[326496008,1715009467404,-11995.93,0.00024931,3]
[326496009,1715009467413,-6090.63,0.00024931,3]
[326496010,1715009467423,-500.0,0.00024931,3]
[326496011,1715009467433,-1569.49,0.00024931,3]
[326496012,1715009467443,-48255.03,0.00024931,3]
[326496013,1715009467452,-3233.04,0.00024931,3]
[326496014,1715009467463,-3238.07,0.00024931,3]
[326496015,1715009467473,-500.0,0.00024931,3]
[326496016,1715009467483,-3755.96,0.00024931,3]
[326496017,1715009467493,-500.0,0.00024931,3]
[326496018,1715009467503,-2750.25,0.00024931,3]
[326496019,1715009467513,-15270.98,0.00024931,3]
[326496020,1715009467523,-786.29,0.00024931,3]
[326496021,1715009467532,-500.0,0.00024931,3]
[326496022,1715009467542,-2617.25,0.00024931,3]
[326496023,1715009467552,-2908.2,0.00024931,3]
[326496024,1715009467563,-1164.59,0.00024931,3]
[326496025,1715009467575,-500.0,0.00024931,3]
[326496026,1715009467585,-1731.61,0.00024931,3]
[326496027,1715009467595,-1174.56,0.00024931,3]
[326496028,1715009467604,-500.0,0.00024931,3]
[326496029,1715009467615,-2390.14,0.00024931,3]
[326496030,1715009467625,-500.0,0.00024931,3]
[326496031,1715009467635,-650.57,0.00024931,3]
[326496032,1715009467645,-1621.23,0.00024931,3]
[326496033,1715009467656,-1260.33,0.00024931,3]
[326496034,1715009467666,-3507.22,0.00024931,3]
[326496035,1715009467676,-6450.09,0.00024931,3]
[326496036,1715009467686,-2782.76,0.00024931,3]
[326496037,1715009467695,-1148.86,0.00024931,3]
[326496038,1715009467705,-500.0,0.00024931,3]
[326496039,1715009467715,-500.0,0.00024931,3]
[326496040,1715009467725,-6568.18,0.00024931,3]
[326496041,1715009467736,-1664.67,0.00024931,3]
[326496042,1715009467745,-500.0,0.00024931,3]
[326496043,1715009467755,-3671.09,0.00024931,3]
[326496044,1715009467767,-3357.62,0.00024931,3]
[326496045,1715009467776,-4169.19,0.00024931,3]
[326496046,1715009467787,-522.56152949,0.00024931,3]
[326496047,1715009467796,-1644.7,0.00024931,3]
[326496048,1715009467808,-500.0,0.00024931,3]
[326496049,1715009467817,-849.46,0.00024931,3]
[326496050,1715009467827,-2640.54,0.00024931,3]
[326496051,1715009467837,-766.54,0.00024931,3]
[326496052,1715009467847,-3026.07,0.00024931,3]
[326496053,1715009467858,-260.5289371,0.00024931,3]
[326496054,1715009467868,-2708.48,0.00024931,3]
[326496055,1715009467878,-1200.34,0.00024931,3]
[326496056,1715009467887,-12534.57,0.00024931,3]
[326496057,1715009467898,-500.0,0.00024931,3]
[326496058,1715009467907,-2572.04,0.00024931,3]
[326496059,1715009467917,-3337.55,0.00024931,3]
[326496060,1715009467927,-522.18,0.00024931,3]
[326496061,1715009467937,-513.54729949,0.00024931,3]
[326496062,1715009467946,-1149.01,0.00024931,3]
[326496063,1715009467956,-587.43,0.00024931,3]
[326496064,1715009467966,-500.0,0.00024931,3]
[326496065,1715009467975,-500.0,0.00024931,3]
[326496066,1715009467987,-2083.02,0.00024931,3]
[326496067,1715009467996,-590.05,0.00024931,3]
[326496068,1715009468006,-9239.37,0.00024931,3]
[326496069,1715009468017,-1340.91,0.00024931,3]
[326496070,1715009468029,-1634.69,0.00024931,3]
[326496071,1715009468040,-1066.24,0.00024931,3]
[326496072,1715009468059,-2044.84,0.00024931,3]
[326496073,1715009468068,-968.0,0.00024931,3]
[326496074,1715009468078,-681.99,0.00024931,3]
[326496075,1715009468087,-1753.87,0.00024931,3]
[326496076,1715009468097,-1303.96,0.00024931,3]
[326496077,1715009468107,-596.85,0.00024931,3]
[326496078,1715009468117,-2145.81,0.00024931,3]
[326496079,1715009468127,-1091.07,0.00024931,3]
[326496080,1715009468136,-500.0,0.00024931,3]
[326496081,1715009468146,-6364.94,0.00024931,3]
[326496082,1715009468156,-500.0,0.00024931,3]
[326496083,1715009468165,-961.65,0.00024931,3]
[326496084,1715009468175,-1363.01,0.00024931,3]
[326496085,1715009468185,-839.76,0.00024931,3]
[326496086,1715009468195,-500.0,0.00024931,3]
[326496087,1715009468205,-2889.4,0.00024931,3]
[326496088,1715009468214,-394.88960227,0.00024931,3]
[326496089,1715009468479,-1108.58,0.00024931,3]
[326496090,1715009468499,-6879.87,0.00024931,3]
[326496091,1715009468509,-2147.8,0.00024931,3]
[326496092,1715009468518,-2437.98996235,0.00024931,3]
[326496093,1715009469060,-1140.03003765,0.00024931,3]
[326496094,1715009469071,-3639.98,0.00024931,3]
[326496095,1715009469081,-829.22,0.00024931,3]
[326496096,1715009469092,-2766.97,0.00024931,3]
[326496097,1715009469102,-500.0,0.00024931,3]
[326496098,1715009469113,-1968.46,0.00024931,3]
[326496099,1715009469123,-1622.03,0.00024931,3]
[326496100,1715009469134,-500.0,0.00024931,3]
[326496101,1715009469144,-500.0,0.00024931,3]
[326496102,1715009469154,-4678.76,0.00024931,3]
[326496103,1715009469165,-703.65,0.00024931,3]
[326496104,1715009469181,-500.0,0.00024931,3]
[326496105,1715009469192,-500.0,0.00024931,3]
[326496106,1715009469203,-4483.25,0.00024931,3]
[326496107,1715009469214,-3347.44,0.00024931,3]
[326496108,1715009469225,-500.0,0.00024931,3]
[326496109,1715009469237,-546.18,0.00024931,3]
[326496110,1715009469248,-3320.0,0.00024931,3]
[326496111,1715009469259,-544.79,0.00024931,3]
[326496112,1715009469270,-500.0,0.00024931,3]
[326496113,1715009469281,-924.19,0.00024931,3]
[326496114,1715009469292,-500.0,0.00024931,3]
[326496115,1715009469303,-3497.48,0.00024931,3]
[326496116,1715009469314,-1743.63,0.00024931,3]
[326496117,1715009469325,-1416.8,0.00024931,3]
[326496118,1715009469335,-6890.02,0.00024931,3]
[326496119,1715009469346,-1832.86,0.00024931,3]
[326496120,1715009469357,-500.0,0.00024931,3]
[326496121,1715009469369,-5482.55,0.00024931,3]
[326496122,1715009469380,-3187.77,0.00024931,3]
[326496123,1715009469390,-3557.67,0.00024931,3]
[326496124,1715009469405,-2301.72,0.00024931,3]
[326496125,1715009469416,-500.0,0.00024931,3]
[326496126,1715009469426,-500.0,0.00024931,3]
[326496127,1715009469437,-500.0,0.00024931,3]
[326496128,1715009469447,-3177.23,0.00024931,3]
[326496129,1715009469458,-500.0,0.00024931,3]
[326496130,1715009469468,-500.0,0.00024931,3]
[326496131,1715009469479,-3439.46,0.00024931,3]
[326496132,1715009469490,-3798.9,0.00024931,3]
[326496133,1715009469501,-500.0,0.00024931,3]
[326496134,1715009469511,-750.36,0.00024931,3]
[326496135,1715009469521,-1785.64,0.00024931,3]
[326496136,1715009469531,-2399.44,0.00024931,3]
[326496137,1715009469542,-3209.2,0.00024931,3]
[326496138,1715009469553,-3506.65,0.00024931,3]
[326496139,1715009469564,-7826.43,0.00024931,3]
[326496140,1715009469574,-1225.61,0.00024931,3]
[326496141,1715009469585,-924.96,0.00024931,3]
[326496142,1715009469595,-3658.82,0.00024931,3]
[326496143,1715009469606,-793.41,0.00024931,3]
[326496144,1715009469616,-3041.98,0.00024931,3]
[326496145,1715009469627,-2249.25,0.00024931,3]
[326496146,1715009469637,-910.61,0.00024931,3]
[326496147,1715009469647,-11394.11,0.00024931,3]
[326496148,1715009469658,-976.98,0.00024931,3]
[326496149,1715009469668,-10963.05,0.00024931,3]
[326496150,1715009469678,-842.84,0.00024931,3]
[326496151,1715009469689,-2668.94,0.00024931,3]
[326496152,1715009469700,-3371.14,0.00024931,3]
[326496153,1715009469710,-500.0,0.00024931,3]
[326496154,1715009469720,-6478.66,0.00024931,3]
[326496155,1715009469733,-38384.45,0.00024931,3]
[326496156,1715009469745,-3050.27,0.00024931,3]
[326496157,1715009469755,-803.29,0.00024931,3]
[326496158,1715009469768,-500.0,0.00024931,3]
[326496159,1715009469779,-500.0,0.00024931,3]
[326496160,1715009469789,-4033.2,0.00024931,3]
[326496161,1715009469800,-500.0,0.00024931,3]
[326496162,1715009469811,-500.0,0.00024931,3]
[326496163,1715009469821,-751.42,0.00024931,3]
[326496164,1715009469831,-4399.04,0.00024931,3]
[326496165,1715009469843,-500.0,0.00024931,3]
[326496166,1715009469853,-500.0,0.00024931,3]
[326496167,1715009469864,-500.0,0.00024931,3]
[326496168,1715009469873,-4781.53,0.00024931,3]
[326496169,1715009469883,-18794.31,0.00024931,3]
[326496170,1715009469893,-3019.86,0.00024931,3]
[326496171,1715009469903,-500.0,0.00024931,3]
[326496172,1715009469913,-3216.06,0.00024931,3]
[326496173,1715009469924,-500.0,0.00024931,3]
[326496174,1715009469934,-500.0,0.00024931,3]
[326496175,1715009469944,-679.95,0.00024931,3]
[326496176,1715009469955,-759.68,0.00024931,3]
[326496177,1715009469964,-734.31,0.00024931,3]
[326496178,1715009469974,-500.45,0.00024931,3]
[326496179,1715009469986,-1966.97,0.00024931,3]
[326496180,1715009469998,-500.0,0.00024931,3]
[326496181,1715009470009,-1226.74,0.00024931,3]
[326496182,1715009470019,-918.05,0.00024931,3]
[326496183,1715009470029,-500.0,0.00024931,3]
[326496184,1715009470039,-1188.08,0.00024931,3]
[326496185,1715009470049,-817.1,0.00024931,3]
[326496186,1715009470060,-1498.71,0.00024931,3]
[326496187,1715009470071,-1227.88,0.00024931,3]
[326496188,1715009470081,-12076.36,0.00024931,3]
[326496189,1715009470091,-3985.19,0.00024931,3]
[326496190,1715009470101,-1108.44,0.00024931,3]
[326496191,1715009470111,-500.0,0.00024931,3]
[326496192,1715009470121,-997.89,0.00024931,3]
[326496193,1715009470131,-2440.46,0.00024931,3]
[326496194,1715009470141,-1696.37,0.00024931,3]
[326496195,1715009470151,-3092.69,0.00024931,3]
[326496196,1715009470161,-577.88,0.00024931,3]
[326496197,1715009470171,-1186.92,0.00024931,3]
[326496198,1715009470183,-500.0,0.00024931,3]
[326496199,1715009470194,-6012.8,0.00024931,3]
[326496200,1715009470204,-1103.43,0.00024931,3]
[326496201,1715009470215,-2472.58,0.00024931,3]
[326496202,1715009470226,-500.0,0.00024931,3]
[326496203,1715009470238,-500.0,0.00024931,3]
[326496204,1715009470249,-3496.92,0.00024931,3]
[326496205,1715009470259,-511.05,0.00024931,3]
[326496206,1715009470270,-25757.13,0.00024931,3]
[326496207,1715009470280,-978.15,0.00024931,3]
[326496208,1715009470290,-1607.27,0.00024931,3]
[326496209,1715009470300,-5501.3,0.00024931,3]
[326496210,1715009470310,-846.73,0.00024931,3]
[326496211,1715009470320,-1422.68,0.00024931,3]
[326496212,1715009470330,-839.68,0.00024931,3]
[326496213,1715009470340,-585.17,0.00024931,3]
[326496214,1715009470350,-3876.61,0.00024931,3]
[326496215,1715009470360,-1301.77,0.00024931,3]
[326496216,1715009470370,-602.97,0.00024931,3]
[326496217,1715009470381,-500.0,0.00024931,3]
[326496218,1715009470393,-1545.64,0.00024931,3]
[326496219,1715009470405,-500.0,0.00024931,3]
[326496220,1715009470416,-2486.37,0.00024931,3]
[326496221,1715009470426,-4575.64,0.00024931,3]
[326496222,1715009470437,-1493.66,0.00024931,3]
[326496223,1715009470448,-2441.28,0.00024931,3]
[326496224,1715009470458,-500.0,0.00024931,3]
[326496225,1715009470469,-500.0,0.00024931,3]
[326496226,1715009470479,-500.0,0.00024931,3]
[326496227,1715009470499,-658.83,0.00024931,3]
[326496228,1715009470509,-1906.79,0.00024931,3]
[326496229,1715009470519,-9225.67,0.00024931,3]
[326496230,1715009470538,-968.91,0.00024931,3]
[326496231,1715009470548,-2908.25,0.00024931,3]
[326496232,1715009470559,-534.6,0.00024931,3]
[326496233,1715009470570,-982.01,0.00024931,3]
[326496234,1715009470579,-500.0,0.00024931,3]
[326496235,1715009470590,-4914.11,0.00024931,3]
[326496236,1715009470600,-1706.73,0.00024931,3]
[326496237,1715009470611,-4374.16,0.00024931,3]
[326496238,1715009470621,-17596.49,0.00024931,3]
[326496239,1715009470631,-760.18,0.00024931,3]
[326496240,1715009470641,-1218.05,0.00024931,3]
[326496241,1715009470651,-2716.66,0.00024931,3]
[326496242,1715009470661,-528.08,0.00024931,3]
[326496243,1715009470671,-545.11,0.00024931,3]
[326496244,1715009470682,-500.0,0.00024931,2]
[326496245,1715009470691,-6285.82,0.00024931,3]
[326496246,1715009470702,-500.0,0.00024931,3]
[326496247,1715009470711,-1833.36,0.00024931,3]
[326496248,1715009470720,-500.0,0.00024931,3]
[326496249,1715009470730,-967.34,0.00024931,3]
[326496250,1715009470745,-783.3,0.00024931,3]
[326496251,1715009470754,-506.6948062,0.00024931,3]
[326496252,1715009470765,-857.79,0.00024931,3]
[326496253,1715009470777,-1359.44,0.00024931,3]
[326496254,1715009470787,-2479.8,0.00024931,3]
[326496255,1715009470796,-549.85,0.00024931,3]
[326496256,1715009470806,-1565.21,0.00024931,3]
[326496257,1715009470818,-827.82,0.00024931,3]
[326496258,1715009470828,-500.0,0.00024931,3]
[326496259,1715009470838,-1669.69,0.00024931,3]
[326496260,1715009470849,-156.509704,0.00024966,2]
[326496261,1715009470860,-156.509704,0.00024966,2]
[326496262,1715009470871,-2218.57256714,0.00025,2]
[326496263,1715009470883,-471.60362987,0.00025,2]
[326496264,1715009470996,-1004.0,0.00025,4]
[326496265,1715009471006,-1004.0,0.00025,3]
[326496266,1715009471015,-3000.0,0.00025,2]
[326496267,1715009471025,-3000.0,0.00025,2]
[326496268,1715009471034,-3000.0,0.00025,2]
[326496269,1715009471047,-3000.0,0.00025,2]
[326496270,1715009471057,-3000.0,0.00025,2]
[326496271,1715009471067,-839.84,0.00025,2]
[326496272,1715009471077,-468.17258052,0.00025,2]
[326496273,1715009471087,-1999.99999901,0.00025,2]
[326496274,1715009471097,-250.60554248,0.00025,2]
[326496275,1715009471107,-500.0,0.00025,2]
[326496276,1715009471116,-451.27497454,0.00025,2]
[326496277,1715009471126,-155.0,0.00025,2]
[326496278,1715009471136,-150.0,0.00025,4]
[326496279,1715009471146,-71740.87,0.00025008,2]
[326496280,1715009471155,-155.61811039,0.00025029,2]
[326496281,1715009471164,-2892.510226,0.00025047,2]
[326496282,1715009471173,-21184.396021,0.00025047,2]
[326496283,1715009471183,-189.398626,0.00025047,2]
[326496284,1715009471192,-1799.032508,0.00025047,2]
[326496285,1715009471201,-1133.378369,0.00025047,2]
[326496286,1715009471211,-757.594501,0.00025047,2]
[326496287,1715009471221,-226.675674,0.00025047,2]
[326496288,1715009471230,-13378.67824859,0.00025082,2]
[326496289,1715009471242,-37236.361081,0.00025088,2]
[326496290,1715009471251,-1858.813841,0.00025088,2]
[326496291,1715009471261,-1212.27301985,0.00025099,2]
[326496292,1715009471270,-825.17783057,0.00025115,2]
[326496293,1715009471280,-157.050619,0.00025198,4]
[326496294,1715009471290,-398.41,0.000252,2]
[326496295,1715009471299,-279.64,0.000252,2]
[326496296,1715009471309,-500.0,0.00025205,4]
[326496297,1715009471318,-500.0,0.00025205,4]
[326496298,1715009471329,-769.68,0.00025205,4]
[326496299,1715009471339,-1840.62,0.00025205,4]
[326496300,1715009471349,-500.0,0.00025205,4]
[326496301,1715009471359,-994.94,0.00025205,4]
[326496302,1715009471368,-500.0,0.00025205,4]
[326496303,1715009471378,-798.91,0.00025205,4]
[326496304,1715009471388,-506.37,0.00025205,4]
[326496305,1715009471397,-221.51759091,0.00025205,4]
[326496306,1715009471409,-533.57,0.00025205,4]
[326496307,1715009471418,-1395.39,0.00025205,4]